[Event "16th Deltalift Open 2019"]
[Site "Halmstad"]
[Date "2019.05.30"]
[Round "4.21"]
[White "Andersson, Lars"]
[Black "Lindborg, Patrik"]
[Result "1-0"]
[ECO "A02"]
[WhiteElo "1997"]
[BlackElo "2172"]
[Annotator "ChessBase"]
[PlyCount "77"]
[EventDate "2019.05.30"]
[EventType "swiss"]
[EventCountry "SWE"]
[SourceTitle "playchess.com"]
[Source "ChessBase"]
[SourceQuality "1"]
[TimeControl "1800+12"]

1. f4 {[%emt 0:00:00]} c5 {[%emt 0:00:26]} 2. Nf3 {[%emt 0:00:00]} Nc6 {[%emt 0:00:01]} 3. e4 {[%emt 0:00:56]} d5 {[%emt 0:00:32]} 4. e5 {[%emt 0:03:31]} Bg4 {[%emt 0:02:08]} 5. h3 {[%emt 0:02:16]} Bxf3 {[%emt 0:00:06]} 6. Qxf3 {[%emt 0:00:02]} e6 {[%emt 0:00:18]} 7. Bb5 {[%emt 0:03:06]} Nge7 {[%emt 0:01:13]} 8. O-O {[%emt 0:00:08]} h5 {[%emt 0:03:20]} 9. d3 {[%emt 0:05:22]} Rc8 {[%emt 0:03:20]} 10. c3 {[%emt 0:00:10]} Nf5 {[%emt 0:00:27]} 11. g3 {[%emt 0:01:29]} Rh6 {[%emt 0:01:58]} 12. Kh2 {[%emt 0:01:22]} Qb6 {[%emt 0:04:19]} 13. Bxc6+ {[%emt 0:03:22]} Qxc6 {[%emt 0:00:42]} 14. Be3 {[%emt 0:01:56]} Qb5 {[%emt 0:03:05]} 15. Bc1 {[%emt 0:00:43]} Be7 {[%emt 0:00:41]} 16. Na3 {[%emt 0:00:25]} Qc6 {[%emt 0:01:53]} 17. Nc2 {[%emt 0:00:13]} b5 {[%emt 0:00:37]} 18. Rb1 {[%emt 0:00:49]} b4 {[%emt 0:00:47]} 19. Rf2 {[%emt 0:01:19]} Qa4 {[%emt 0:01:13]} 20. a3 {[%emt 0:00:22]} Qb3 {[%emt 0:00:36]} 21. axb4 {[%emt 0:01:55]} cxb4 {[%emt 0:01:29]} 22. Nxb4 {[%emt 0:00:34]} Bxb4 {[%emt 0:00:14]} 23. cxb4 {[%emt 0:00:04]} Rc2 {[%emt 0:00:13]} 24. Bd2 {[%emt 0:01:20]} Rg6 {[%emt 0:00:49]} 25. g4 {[%emt 0:01:35]} hxg4 {[%emt 0:00:18]} 26. hxg4 {[%emt 0:00:01]} Rh6+ {[%emt 0:01:38]} 27. Kg1 {[%emt 0:00:01]} Nh4 {[%emt 0:00:28]} 28. Qe3 {[%emt 0:00:04]} Qa2 {[%emt 0:00:59]} 29. Rc1 {[%emt 0:01:05]} Qxb2 {[%emt 0:00:27]} 30. Rd1 {[%emt 0:00:20]} Qa2 {[%emt 0:00:35]} 31. f5 {[%emt 0:00:27]} exf5 {[%emt 0:00:43]} 32. gxf5 {[%emt 0:00:02]} Rh5 {[%emt 0:00:23]} 33. f6 {[%emt 0:00:20]} g6 {[%emt 0:00:13]} 34. e6 {[%emt 0:00:07]} Rc7 {[%emt 0:00:12]} 35. Re1 {[%emt 0:00:30]} Qa4 {[%emt 0:00:09]} 36. exf7+ {[%emt 0:00:14]} Kxf7 {[%emt 0:00:02]} 37. Qe6+ {[%emt 0:00:01]} Kf8 {[%emt 0:00:01]} 38. Qd6+ {[%emt 0:00:05]} Kg8 {[%emt 0:00:18]} 39. Qxc7 {[%emt 0:00:26]} 1-0

[Event "16th Deltalift Open 2019"]
[Site "Halmstad"]
[Date "2019.05.30"]
[Round "4.22"]
[White "Petersson, Baldur Teodor"]
[Black "Trost, Edvin"]
[Result "0-1"]
[ECO "B24"]
[WhiteElo "2163"]
[BlackElo "2047"]
[Annotator "ChessBase"]
[PlyCount "98"]
[EventDate "2019.05.30"]
[EventType "swiss"]
[EventCountry "SWE"]
[SourceTitle "playchess.com"]
[Source "ChessBase"]
[SourceQuality "1"]
[TimeControl "1800+12"]

1. e4 {[%emt 0:00:00]} c5 {[%emt 0:00:00]} 2. Nc3 {[%emt 0:00:25]} Nc6 {[%emt 0:00:00]} 3. g3 {[%emt 0:00:10]} e6 {[%emt 0:00:20]} 4. Bg2 {[%emt 0:00:05]} Nf6 {[%emt 0:00:02]} 5. f4 {[%emt 0:00:12]} d5 {[%emt 0:01:24]} 6. e5 {[%emt 0:00:05]} Nd7 {[%emt 0:00:34]} 7. Nf3 {[%emt 0:00:13]} Rb8 {[%emt 0:00:31]} 8. O-O {[%emt 0:00:59]} b5 {[%emt 0:00:11]} 9. a3 {[%emt 0:00:07]} g6 {[%emt 0:01:42]} 10. Ne2 {[%emt 0:01:27]} Qb6 {[%emt 0:01:23]} 11. d4 {[%emt 0:01:30]} cxd4 {[%emt 0:01:19]} 12. Nexd4 {[%emt 0:00:12]} Nxd4 {[%emt 0:02:55]} 13. Nxd4 {[%emt 0:00:06]} a5 {[%emt 0:01:30]} 14. Be3 {[%emt 0:00:41]} Ba6 {[%emt 0:00:53]} 15. Rf2 {[%emt 0:05:53]} Qc7 {[%emt 0:00:11]} 16. Bf1 {[%emt 0:01:06]} Qb7 {[%emt 0:03:21]} 17. c3 {[%emt 0:02:51]} Be7 {[%emt 0:03:05]} 18. b4 {[%emt 0:02:06]} a4 {[%emt 0:00:07]} 19. Rc1 {[%emt 0:01:24]} h5 {[%emt 0:04:39]} 20. h4 {[%emt 0:00:33]} Qc7 {[%emt 0:06:14]} 21. Bd3 {[%emt 0:00:21]} Nf8 {[%emt 0:00:40]} 22. Qe2 {[%emt 0:00:29]} Qb7 {[%emt 0:00:26]} 23. Rh2 {[%emt 0:01:22]} Kd7 {[%emt 0:02:14]} 24. Kf2 {[%emt 0:01:17]} Kc7 {[%emt 0:00:16]} 25. Ke1 {[%emt 0:00:24]} Kc8 {[%emt 0:00:38]} 26. Kd2 {[%emt 0:00:13]} Bd8 {[%emt 0:00:10]} 27. Kc2 {[%emt 0:00:38]} Qd7 {[%emt 0:00:11]} 28. Bg1 {[%emt 0:00:27]} Rb7 {[%emt 0:00:20]} 29. Kb2 {[%emt 0:00:12]} Kb8 {[%emt 0:00:01]} 30. Ka2 {[%emt 0:01:03]} Bb6 {[%emt 0:00:28]} 31. Bxb5 {[%emt 0:00:47]} Bxb5 {[%emt 0:00:05]} 32. Nxb5 {[%emt 0:00:56]} Bxg1 {[%emt 0:00:02]} 33. Nd6 {[%emt 0:00:05]} Bxh2 34. Nxb7 {[%emt 0:00:03]} Qxb7 {[%emt 0:00:32]} 35. Qxh2 {[%emt 0:00:01]} Nd7 {[%emt 0:00:10]} 36. c4 {[%emt 0:02:10]} dxc4 {[%emt 0:00:02]} 37. Qc2 {[%emt 0:00:00]} Nb6 {[%emt 0:00:28]} 38. Rd1 {[%emt 0:00:10]} Nd5 {[%emt 0:00:15]} 39. Rd4 {[%emt 0:00:20]} Nb6 {[%emt 0:00:14]} 40. Qd2 {[%emt 0:00:14]} Rc8 {[%emt 0:00:03]} 41. Rd8 {[%emt 0:01:26]} Nd5 {[%emt 0:00:22]} 42. Rxc8+ {[%emt 0:00:38]} Qxc8 {[%emt 0:00:04]} 43. Qc2 {[%emt 0:00:13]} Qc6 {[%emt 0:00:04]} 44. Ka1 {[%emt 0:00:28]} Kb7 {[%emt 0:00:02]} 45. Kb1 {[%emt 0:00:56]} Nb6 {[%emt 0:00:05]} 46. Qd1 {[%emt 0:00:32]} Qd5 {[%emt 0:00:08]} 47. Qe2 {[%emt 0:00:11]} Qd3+ {[%emt 0:00:17]} 48. Qxd3 {[%emt 0:00:01]} cxd3 49. Kc1 Nc4 {[%emt 0:00:02]} 0-1

[Event "16th Deltalift Open 2019"]
[Site "Halmstad"]
[Date "2019.05.30"]
[Round "4.23"]
[White "Nilsson, Eskil"]
[Black "Blomstrom, Lars"]
[Result "1/2-1/2"]
[ECO "B31"]
[WhiteElo "1991"]
[BlackElo "2153"]
[Annotator "ChessBase"]
[PlyCount "84"]
[EventDate "2019.05.30"]
[EventType "swiss"]
[EventCountry "SWE"]
[SourceTitle "playchess.com"]
[Source "ChessBase"]
[SourceQuality "1"]
[TimeControl "1800+12"]

1. e4 {[%emt 0:00:00]} c5 {[%emt 0:00:23]} 2. Nf3 {[%emt 0:00:02]} Nc6 {[%emt 0:00:02]} 3. Bb5 {[%emt 0:00:09]} g6 {[%emt 0:00:05]} 4. O-O {[%emt 0:00:11]} Bg7 {[%emt 0:00:04]} 5. Re1 {[%emt 0:00:33]} e5 {[%emt 0:01:39]} 6. Bxc6 {[%emt 0:00:13]} dxc6 {[%emt 0:00:03]} 7. d3 {[%emt 0:00:19]} Qc7 {[%emt 0:00:47]} 8. a3 {[%emt 0:00:49]} Nf6 {[%emt 0:00:26]} 9. b4 {[%emt 0:00:26]} Nd7 {[%emt 0:00:57]} 10. bxc5 {[%emt 0:00:42]} Nxc5 {[%emt 0:00:31]} 11. a4 {[%emt 0:01:33]} O-O {[%emt 0:02:26]} 12. Ba3 {[%emt 0:01:14]} b6 {[%emt 0:00:33]} 13. Nbd2 {[%emt 0:01:22]} h6 {[%emt 0:06:39]} 14. Nc4 {[%emt 0:05:35]} Be6 {[%emt 0:00:21]} 15. Bxc5 {[%emt 0:02:39]} bxc5 {[%emt 0:00:11]} 16. Qe2 {[%emt 0:03:59]} Rab8 {[%emt 0:04:22]} 17. Nfd2 {[%emt 0:01:00]} Rb4 {[%emt 0:05:00]} 18. c3 {[%emt 0:04:41]} Rbb8 {[%emt 0:01:05]} 19. Qe3 {[%emt 0:00:28]} Rfd8 {[%emt 0:00:22]} 20. Rab1 {[%emt 0:01:19]} Bf8 {[%emt 0:00:55]} 21. Nb3 {[%emt 0:03:10]} Bxc4 {[%emt 0:05:52]} 22. dxc4 {[%emt 0:00:02]} Qd6 {[%emt 0:00:06]} 23. Kf1 {[%emt 0:00:05]} Qd3+ {[%emt 0:00:07]} 24. Qxd3 {[%emt 0:00:11]} Rxd3 {[%emt 0:00:03]} 25. Rec1 {[%emt 0:00:10]} h5 {[%emt 0:00:40]} 26. Ke2 {[%emt 0:00:06]} Rd7 {[%emt 0:00:10]} 27. Na5 {[%emt 0:00:20]} Rbd8 {[%emt 0:00:15]} 28. Rd1 {[%emt 0:00:07]} Bh6 {[%emt 0:00:08]} 29. Rxd7 {[%emt 0:00:18]} Rxd7 {[%emt 0:00:00]} 30. Rd1 {[%emt 0:00:09]} Rc7 {[%emt 0:00:50]} 31. Rb1 {[%emt 0:01:24]} Bf8 {[%emt 0:00:06]} 32. Rb7 {[%emt 0:00:17]} Rxb7 {[%emt 0:00:20]} 33. Nxb7 {[%emt 0:00:03]} f6 {[%emt 0:00:26]} 34. Nd8 {[%emt 0:00:49]} a6 {[%emt 0:00:24]} 35. Nxc6 {[%emt 0:00:11]} Kf7 {[%emt 0:00:13]} 36. Na5 {[%emt 0:01:30]} Ke6 {[%emt 0:00:05]} 37. Kd3 {[%emt 0:00:21]} Bd6 {[%emt 0:00:06]} 38. Nb3 {[%emt 0:00:22]} f5 {[%emt 0:00:12]} 39. f3 {[%emt 0:00:09]} f4 {[%emt 0:00:27]} 40. g3 {[%emt 0:00:21]} g5 {[%emt 0:00:06]} 41. gxf4 {[%emt 0:00:25]} exf4 {[%emt 0:00:09]} 42. h3 {[%emt 0:00:07]} Be7 1/2-1/2

[Event "16th Deltalift Open 2019"]
[Site "Halmstad"]
[Date "2019.05.30"]
[Round "4.24"]
[White "Rasti, Arvin"]
[Black "Ytterberg, Felix"]
[Result "0-1"]
[ECO "E53"]
[WhiteElo "2151"]
[BlackElo "2018"]
[Annotator "ChessBase"]
[PlyCount "88"]
[EventDate "2019.05.30"]
[EventType "swiss"]
[EventCountry "SWE"]
[SourceTitle "playchess.com"]
[Source "ChessBase"]
[SourceQuality "1"]
[TimeControl "1800+12"]

1. d4 {[%emt 0:00:00]} Nf6 {[%emt 0:00:00]} 2. c4 {[%emt 0:00:00]} e6 {[%emt 0:00:00]} 3. Nc3 {[%emt 0:00:03]} Bb4 {[%emt 0:00:00]} 4. e3 {[%emt 0:00:02]} O-O {[%emt 0:00:02]} 5. Bd3 {[%emt 0:00:02]} d5 {[%emt 0:00:03]} 6. Nf3 {[%emt 0:00:02]} c5 {[%emt 0:00:08]} 7. O-O {[%emt 0:00:03]} cxd4 {[%emt 0:00:02]} 8. exd4 {[%emt 0:00:04]} dxc4 {[%emt 0:00:03]} 9. Bxc4 {[%emt 0:00:00]} b6 {[%emt 0:00:04]} 10. Bg5 {[%emt 0:00:48]} Bb7 {[%emt 0:00:04]} 11. a3 {[%emt 0:00:28]} Be7 {[%emt 0:00:02]} 12. Bb3 {[%emt 0:01:33]} h6 {[%emt 0:00:31]} 13. Bh4 {[%emt 0:00:25]} Ne4 {[%emt 0:00:36]} 14. Bxe7 {[%emt 0:00:24]} Qxe7 {[%emt 0:00:02]} 15. Re1 {[%emt 0:00:46]} Nxc3 {[%emt 0:00:47]} 16. bxc3 {[%emt 0:00:01]} Qc7 {[%emt 0:00:13]} 17. Qd3 {[%emt 0:01:24]} Ba6 {[%emt 0:00:36]} 18. Qe4 {[%emt 0:02:10]} Bb7 {[%emt 0:02:32]} 19. Qd3 {[%emt 0:00:19]} Ba6 {[%emt 0:00:04]} 20. c4 {[%emt 0:01:47]} Nd7 {[%emt 0:00:08]} 21. Bc2 {[%emt 0:01:37]} Nf6 {[%emt 0:00:03]} 22. Ne5 {[%emt 0:00:03]} Rfc8 {[%emt 0:01:30]} 23. Rac1 {[%emt 0:00:50]} Rd8 {[%emt 0:02:05]} 24. Re3 {[%emt 0:01:59]} Rac8 {[%emt 0:01:16]} 25. Rf3 {[%emt 0:03:08]} Kf8 {[%emt 0:01:05]} 26. Bb1 {[%emt 0:02:53]} Bb7 {[%emt 0:00:56]} 27. Re3 {[%emt 0:00:42]} Nd7 {[%emt 0:02:41]} 28. Nxf7 {[%emt 0:07:07]} Kxf7 {[%emt 0:00:02]} 29. d5 {[%emt 0:00:44]} Bxd5 {[%emt 0:00:29]} 30. Qg6+ {[%emt 0:01:23]} Kf8 {[%emt 0:00:01]} 31. Rce1 {[%emt 0:02:01]} Qxc4 {[%emt 0:01:44]} 32. Rg3 {[%emt 0:00:48]} Qd4 {[%emt 0:00:01]} 33. Qh7 {[%emt 0:00:58]} Nc5 {[%emt 0:00:59]} 34. Qh8+ {[%emt 0:01:06]} Kf7 {[%emt 0:00:06]} 35. Qh7 {[%emt 0:00:16]} Be4 {[%emt 0:02:11]} 36. Bxe4 {[%emt 0:00:53]} Nxe4 {[%emt 0:00:02]} 37. Rf3+ {[%emt 0:00:16]} Nf6 {[%emt 0:00:04]} 38. Qb1 {[%emt 0:00:07]} Qd5 {[%emt 0:00:30]} 39. Qb2 {[%emt 0:00:16]} Rc4 {[%emt 0:00:47]} 40. h3 {[%emt 0:00:14]} Rd4 {[%emt 0:00:08]} 41. Rfe3 {[%emt 0:00:11]} Rd1 {[%emt 0:00:10]} 42. Rxd1 {[%emt 0:00:03]} Qxd1+ {[%emt 0:00:01]} 43. Kh2 {[%emt 0:00:01]} Qd6+ {[%emt 0:00:02]} 44. g3 {[%emt 0:00:06]} Qd5 0-1

[Event "16th Deltalift Open 2019"]
[Site "Halmstad"]
[Date "2019.05.31"]
[Round "5.2"]
[White "Brynell, Stellan"]
[Black "Seo, Jung Min"]
[Result "1/2-1/2"]
[ECO "A81"]
[WhiteElo "2406"]
[BlackElo "2377"]
[Annotator "RC"]
[PlyCount "72"]
[EventDate "2019.05.30"]
[EventType "swiss"]
[EventCountry "SWE"]
[SourceTitle "playchess.com"]
[Source "ChessBase"]
[SourceQuality "1"]
[TimeControl "40/5400+30:1800+30"]

1. d4 {[%emt 0:00:00]} f5 {[%emt 0:00:00]} 2. g3 {[%emt 0:00:06]} Nf6 {[%emt 0:00:00]} 3. Bg2 {[%emt 0:00:03]} g6 {[%emt 0:00:00]} 4. Nf3 {[%emt 0:00:30]} Bg7 {[%emt 0:00:02]} 5. O-O {[%emt 0:00:07]} O-O {[%emt 0:00:06]} 6. Nbd2 {[%emt 0:00:32]} d6 {[%emt 0:03:06]} 7. Re1 {[%emt 0:00:09]} Nc6 {[%emt 0:02:26]} 8. e4 {[%emt 0:00:43]} fxe4 {[%emt 0:06:50]} 9. Nxe4 {[%emt 0:00:08]} Nxe4 {[%emt 0:00:41]} 10. Rxe4 {[%emt 0:00:05]} d5 {[%emt 0:05:37]} 11. Rh4 {[%emt 0:08:13]} Bf6 {[%emt 0:05:36]} 12. Ng5 {[%emt 0:44:55]} Re8 {[%emt 0:20:00]} 13. Rh6 {[%emt 0:05:12]} Bxg5 {[%emt 0:27:16]} 14. Bxg5 {[%emt 0:00:07]} Be6 {[%emt 0:01:14]} 15. Qd2 {[%emt 0:01:53]} Qd7 {[%emt 0:00:48]} 16. Re1 {[%emt 0:01:45]} Nd8 {[%emt 0:01:05]} 17. Bf4 {[%emt 0:06:21]} Nf7 {[%emt 0:01:07]} 18. Bxc7 {[%emt 0:05:14]} Nxh6 {[%emt 0:02:34]} 19. Qxh6 {[%emt 0:00:12]} Qxc7 {[%emt 0:06:06]} 20. Rxe6 {[%emt 0:00:07]} Rad8 {[%emt 0:06:52]} 21. Qg5 {[%emt 0:11:20]} Rd6 {[%emt 0:03:18]} 22. Qe5 {[%emt 0:00:20]} Rd7 {[%emt 0:03:39]} 23. Bxd5 {[%emt 0:02:45]} Qxe5 24. Rxe5+ {[%emt 0:00:10]} Kg7 {[%emt 0:00:05]} 25. c3 {[%emt 0:00:18]} Rc7 {[%emt 0:00:37]} 26. Bb3 {[%emt 0:04:04]} Rf8 {[%emt 0:00:20]} 27. f4 {[%emt 0:00:27]} Rf5 {[%emt 0:00:41]} 28. Kf2 {[%emt 0:01:34]} Rxe5 {[%emt 0:01:30]} 29. fxe5 {[%emt 0:00:01]} Rc8 {[%emt 0:00:07]} 30. Ke3 {[%emt 0:00:15]} Rf8 {[%emt 0:00:05]} 31. Bc4 {[%emt 0:02:07]} g5 {[%emt 0:00:51]} 32. h3 {[%emt 0:02:34]} h5 {[%emt 0:00:37]} 33. Be2 {[%emt 0:01:11]} Kg6 {[%emt 0:00:08]} 34. Bd3+ {[%emt 0:01:14]} Kg7 {[%emt 0:00:01]} 35. Be2 {[%emt 0:00:51]} Kg6 {[%emt 0:00:22]} 36. Bd3+ {[%emt 0:00:26]} Kg7 {[%emt 0:00:04]} 1/2-1/2

[Event "16th Deltalift Open 2019"]
[Site "Halmstad"]
[Date "2019.05.31"]
[Round "5.3"]
[White "Malmstig, Erik"]
[Black "Jepson, Christian"]
[Result "1-0"]
[ECO "B07"]
[WhiteElo "2352"]
[BlackElo "2395"]
[Annotator "RC"]
[PlyCount "53"]
[EventDate "2019.05.30"]
[EventType "swiss"]
[EventCountry "SWE"]
[SourceTitle "playchess.com"]
[Source "ChessBase"]
[SourceQuality "1"]
[TimeControl "40/5400+30:1800+30"]

1. e4 {[%emt 0:00:00]} d6 {[%emt 0:00:24]} 2. d4 {[%emt 0:00:00]} Nf6 {[%emt 0:00:05]} 3. Nc3 {[%emt 0:00:00]} g6 {[%emt 0:00:04]} 4. h4 {[%emt 0:00:10]} Bg7 {[%emt 0:00:43]} 5. Be2 {[%emt 0:00:09]} c5 {[%emt 0:00:39]} 6. d5 {[%emt 0:00:26]} h5 {[%emt 0:04:42]} 7. Nh3 {[%emt 0:00:23]} Na6 {[%emt 0:08:20]} 8. Ng5 {[%emt 0:01:42]} Nc7 {[%emt 0:00:16]} 9. Bf4 {[%emt 0:05:02]} Ng4 {[%emt 0:03:06]} 10. Qd2 {[%emt 0:01:01]} a6 {[%emt 0:04:13]} 11. a4 {[%emt 0:01:00]} Bd7 {[%emt 0:03:18]} 12. a5 {[%emt 0:02:45]} Rb8 {[%emt 0:01:38]} 13. Na4 {[%emt 0:01:56]} Bb5 {[%emt 0:24:36]} 14. O-O {[%emt 0:11:31]} Na8 {[%emt 0:05:15]} 15. c4 {[%emt 0:14:48]} Bd7 {[%emt 0:00:06]} 16. Bg3 {[%emt 0:12:37]} Qc8 {[%emt 0:09:57]} 17. Bxg4 {[%emt 0:09:19]} hxg4 {[%emt 0:03:20]} 18. e5 {[%emt 0:02:18]} dxe5 {[%emt 0:06:02]} 19. d6 {[%emt 0:08:46]} Bxa4 {[%emt 0:03:37]} 20. Rfe1 {[%emt 0:11:31]} O-O {[%emt 0:16:15]} 21. dxe7 {[%emt 0:03:27]} Re8 {[%emt 0:00:02]} 22. Bxe5 {[%emt 0:01:58]} Bxe5 {[%emt 0:01:33]} 23. Rxe5 {[%emt 0:00:06]} Qc7 {[%emt 0:00:58]} 24. Rae1 {[%emt 0:01:31]} Bc6 {[%emt 0:00:51]} 25. h5 {[%emt 0:03:18]} Kg7 {[%emt 0:01:48]} 26. hxg6 {[%emt 0:00:49]} Rh8 {[%emt 0:00:25]} 27. gxf7 {[%emt 0:00:50]} 1-0

[Event "16th Deltalift Open 2019"]
[Site "Halmstad"]
[Date "2019.05.31"]
[Round "5.6"]
[White "Hansen, Lars Bo"]
[Black "Sjodahl, Pontus"]
[Result "0-1"]
[ECO "A45"]
[WhiteElo "2560"]
[BlackElo "2435"]
[Annotator "RC"]
[PlyCount "60"]
[EventDate "2019.05.30"]
[EventType "swiss"]
[EventCountry "SWE"]
[SourceTitle "playchess.com"]
[Source "ChessBase"]
[SourceQuality "1"]
[TimeControl "40/5400+30:1800+30"]

1. d4 {[%emt 0:02:40]} Nf6 {[%emt 0:00:00]} 2. Bg5 {[%emt 0:00:20]} d5 {[%emt 0:00:57]} 3. Bxf6 {[%emt 0:01:02]} gxf6 {[%emt 0:00:17]} 4. Nc3 {[%emt 0:02:10]} c5 {[%emt 0:02:04]} 5. e3 {[%emt 0:00:06]} Nc6 {[%emt 0:02:31]} 6. Qh5 {[%emt 0:00:32]} cxd4 {[%emt 0:04:29]} 7. exd4 {[%emt 0:00:08]} e6 {[%emt 0:00:25]} 8. Nf3 {[%emt 0:00:19]} Bb4 {[%emt 0:09:26]} 9. Bd3 {[%emt 0:01:19]} Qa5 {[%emt 0:08:08]} 10. O-O {[%emt 0:01:54]} Bxc3 {[%emt 0:07:02]} 11. bxc3 {[%emt 0:00:06]} Qxc3 {[%emt 0:00:08]} 12. Qh4 {[%emt 0:06:36]} Ke7 {[%emt 0:03:16]} 13. Rab1 {[%emt 0:03:09]} Qa3 {[%emt 0:09:55]} 14. Ne5 {[%emt 0:39:13]} Qd6 {[%emt 0:02:09]} 15. f4 {[%emt 0:04:56]} h5 {[%emt 0:07:32]} 16. c3 {[%emt 0:18:49]} Qd8 {[%emt 0:16:10]} 17. f5 {[%emt 0:02:08]} Kf8 {[%emt 0:06:57]} 18. fxe6 {[%emt 0:04:16]} fxe5 {[%emt 0:03:48]} 19. Rxf7+ {[%emt 0:00:12]} Ke8 {[%emt 0:00:11]} 20. Rf8+ {[%emt 0:07:01]} Rxf8 {[%emt 0:00:05]} 21. Bg6+ {[%emt 0:00:12]} Rf7 {[%emt 0:00:08]} 22. Bxf7+ {[%emt 0:01:31]} Kf8 {[%emt 0:00:06]} 23. Qxh5 {[%emt 0:00:53]} exd4 {[%emt 0:02:28]} 24. Re1 {[%emt 0:00:47]} Qf6 {[%emt 0:02:10]} 25. Rf1 {[%emt 0:00:51]} Qe5 {[%emt 0:00:09]} 26. Be8+ {[%emt 0:01:07]} Ke7 {[%emt 0:00:08]} 27. Qh7+ {[%emt 0:00:37]} Kd6 {[%emt 0:00:15]} 28. Bxc6 {[%emt 0:00:27]} bxc6 {[%emt 0:00:37]} 29. e7 {[%emt 0:00:32]} Ba6 {[%emt 0:02:11]} 30. Qg6+ {[%emt 0:00:23]} Kc5 {[%emt 0:00:24]} 0-1

[Event "16th Deltalift Open 2019"]
[Site "Halmstad"]
[Date "2019.05.31"]
[Round "5.12"]
[White "Johnson, Daniel"]
[Black "Andersson, Lars"]
[Result "1-0"]
[ECO "E81"]
[WhiteElo "2233"]
[BlackElo "1997"]
[Annotator "RC"]
[PlyCount "85"]
[EventDate "2019.05.30"]
[EventType "swiss"]
[EventCountry "SWE"]
[SourceTitle "playchess.com"]
[Source "ChessBase"]
[SourceQuality "1"]
[TimeControl "40/5400+30:1800+30"]

1. d4 {[%emt 0:01:48]} Nf6 {[%emt 0:00:00]} 2. c4 {[%emt 0:00:08]} g6 {[%emt 0:00:00]} 3. Nc3 {[%emt 0:00:15]} Bg7 {[%emt 0:00:00]} 4. e4 {[%emt 0:00:06]} d6 {[%emt 0:00:00]} 5. f3 {[%emt 0:00:05]} O-O {[%emt 0:00:25]} 6. Nge2 {[%emt 0:00:18]} c5 {[%emt 0:00:31]} 7. d5 {[%emt 0:00:21]} e6 {[%emt 0:00:26]} 8. Ng3 {[%emt 0:00:48]} exd5 {[%emt 0:00:17]} 9. cxd5 {[%emt 0:00:06]} h5 {[%emt 0:01:56]} 10. Bg5 {[%emt 0:05:15]} Qb6 {[%emt 0:00:13]} 11. Qd2 {[%emt 0:01:03]} Nh7 {[%emt 0:06:07]} 12. Be3 {[%emt 0:00:43]} h4 {[%emt 0:03:33]} 13. Nge2 {[%emt 0:00:57]} Nd7 {[%emt 0:02:44]} 14. Nf4 {[%emt 0:06:41]} Ne5 {[%emt 0:03:51]} 15. Be2 {[%emt 0:05:49]} a6 {[%emt 0:18:42]} 16. O-O {[%emt 0:03:46]} Qd8 {[%emt 0:02:20]} 17. a4 {[%emt 0:00:38]} Qe7 {[%emt 0:03:19]} 18. Kh1 {[%emt 0:12:52]} Bd7 {[%emt 0:05:15]} 19. a5 {[%emt 0:05:18]} Rfb8 {[%emt 0:17:30]} 20. Ra2 {[%emt 0:05:36]} Qe8 {[%emt 0:04:42]} 21. Nh3 {[%emt 0:15:33]} Bb5 {[%emt 0:09:40]} 22. Nxb5 {[%emt 0:10:01]} axb5 {[%emt 0:00:05]} 23. Rc1 {[%emt 0:01:55]} Nc4 {[%emt 0:02:07]} 24. Bxc4 {[%emt 0:04:05]} bxc4 {[%emt 0:00:02]} 25. Rxc4 {[%emt 0:03:31]} b5 {[%emt 0:00:18]} 26. Rc1 {[%emt 0:00:44]} b4 {[%emt 0:01:05]} 27. Bf4 {[%emt 0:04:37]} Ra6 {[%emt 0:02:56]} 28. e5 {[%emt 0:04:55]} dxe5 {[%emt 0:01:00]} 29. Be3 {[%emt 0:00:37]} Bf8 {[%emt 0:06:47]} 30. Bxc5 {[%emt 0:02:35]} Qb5 {[%emt 0:00:10]} 31. Bxf8 {[%emt 0:01:05]} Nxf8 {[%emt 0:00:02]} 32. Ng5 {[%emt 0:02:59]} Rxa5 {[%emt 0:00:57]} 33. Rxa5 {[%emt 0:00:33]} Qxa5 {[%emt 0:00:01]} 34. Ne4 {[%emt 0:00:29]} Nd7 {[%emt 0:03:27]} 35. h3 {[%emt 0:00:37]} Rd8 {[%emt 0:04:13]} 36. d6 {[%emt 0:00:32]} Kg7 {[%emt 0:00:49]} 37. Qg5 {[%emt 0:00:29]} f6 {[%emt 0:00:53]} 38. Qxh4 {[%emt 0:00:21]} Qd5 {[%emt 0:00:59]} 39. Rc7 {[%emt 0:00:39]} Qe6 {[%emt 0:01:20]} 40. Qe1 {[%emt 0:00:37]} f5 {[%emt 0:00:24]} 41. Nc5 {[%emt 0:06:04]} Qxd6 {[%emt 0:00:15]} 42. Qh4 {[%emt 0:02:51]} Rh8 {[%emt 0:05:38]} 43. Rxd7+ {[%emt 0:01:18]} 1-0